bitfinex-derivatives/quotes_BTCF0:USTF0_20250101
["timestamp","ask_amount","ask_price","bid_price","bid_amount"]
[1735744330667,0.15957429,94057.0,94056.0,0.02821841]
[1735744331170,0.36950268,94057.0,94056.0,0.02821841]
[1735744331557,0.37050268,94057.0,94056.0,0.02821841]
[1735744332159,0.52820992,94057.0,94056.0,0.02821841]
[1735744333561,0.30533291,94057.0,94056.0,0.02821841]
[1735744334166,0.11003121,94057.0,94056.0,0.02821841]
[1735744334367,0.26961228,94057.0,94056.0,0.02821841]
[1735744338069,0.21635028,94057.0,94050.0,0.053266]
[1735744338263,0.0324,94056.0,94042.0,0.3608]
[1735744338464,0.10885923,94052.0,94042.0,0.3608]
[1735744338872,0.10632981,94051.0,94042.0,0.3608]
[1735744339066,0.053268,94048.0,94047.0,0.053268]
[1735744339667,0.15959781,94048.0,94047.0,0.053268]
[1735744340272,0.10632981,94048.0,94047.0,0.053268]
[1735744340671,0.053266,94050.0,94047.0,0.053268]
[1735744340873,0.001,94048.0,94047.0,0.053268]
[1735744341073,0.15915047,94048.0,94047.0,0.053268]
[1735744341270,0.05282123,94048.0,94047.0,0.053268]
[1735744341468,0.15915047,94048.0,94047.0,0.053268]
[1735744341868,0.16015047,94048.0,94047.0,0.053268]
[1735744343973,0.16015047,94048.0,94042.0,0.38885941]
[1735744344171,0.16015047,94048.0,94045.0,0.053269]
[1735744344172,0.053269,94046.0,94045.0,0.053269]
[1735744344878,0.10632924,94046.0,94045.0,0.053269]
[1735744345278,0.16418256,94046.0,94045.0,0.053269]
[1735744346278,0.27051406,94046.0,94045.0,0.053269]
[1735744346671,0.27151406,94046.0,94045.0,0.053269]
[1735744347180,0.27051406,94046.0,94045.0,0.053269]
[1735744347381,0.27151406,94046.0,94045.0,0.053269]
[1735744349882,0.27151406,94046.0,94043.0,0.0302]
[1735744350184,0.32478306,94046.0,94043.0,0.05327]
[1735744351283,0.32478306,94046.0,94042.0,0.38885941]
[1735744351491,0.16418256,94045.0,94044.0,0.05327]
[1735744352197,0.2705152,94045.0,94044.0,0.05327]
[1735744353701,0.2715152,94045.0,94044.0,0.05327]
[1735744353903,0.22287701,94059.0,94044.0,0.3]
[1735744354110,0.12307701,94059.0,94058.0,0.414062]
[1735744355002,0.12307701,94059.0,94058.0,0.714062]
[1735744355199,0.22939382,94059.0,94058.0,0.414062]
[1735744356005,0.10631681,94059.0,94058.0,0.414062]
[1735744356410,0.053257,94067.0,94061.0,0.05326]
[1735744356901,0.10631681,94066.0,94058.0,0.38478699]
[1735744357102,0.25444532,94064.0,94058.0,0.38478699]
[1735744357503,0.25444532,94064.0,94058.0,0.38578699]
[1735744357697,0.15957059,94063.0,94058.0,0.43904899]
[1735744358004,0.15957059,94063.0,94061.0,0.001]
[1735744358203,0.05326,94062.0,94061.0,0.001]
[1735744358507,0.053261,94059.0,94058.0,0.003]
[1735744359105,0.053261,94059.0,94058.0,0.002]
[1735744359409,0.15957781,94059.0,94058.0,0.002]
[1735744360108,0.38697049,94059.0,94056.0,0.02478144]
[1735744360411,0.38697049,94059.0,94058.0,0.414062]
[1735744360702,0.38697049,94059.0,94058.0,0.415062]
[1735744361306,0.236977,94059.0,94058.0,0.415062]
[1735744362406,0.17595826,94064.0,94063.0,0.053259]
[1735744362900,0.28227507,94064.0,94063.0,0.053259]
[1735744363499,0.10631681,94064.0,94063.0,0.053259]
[1735744363905,0.053257,94068.0,94065.0,0.053258]
[1735744364511,0.10631116,94067.0,94065.0,0.053258]
[1735744364702,0.49686922,94067.0,94065.0,0.053258]
[1735744365707,0.053258,94065.0,94059.0,0.02408203]
[1735744366001,0.053258,94065.0,94058.0,0.3608]
[1735744366002,0.053258,94065.0,94062.0,0.053259]
[1735744366399,0.10630833,94064.0,94062.0,0.053259]
[1735744367200,0.24313471,94063.0,94062.0,0.053259]
[1735744367906,0.34944643,94063.0,94062.0,0.053259]
[1735744369401,0.24313471,94063.0,94062.0,0.053259]
[1735744370009,0.29494365,94063.0,94062.0,0.053259]
[1735744371510,0.16328346,94063.0,94062.0,0.053259]
[1735744372315,0.26959575,94063.0,94062.0,0.053259]
[1735744372904,0.10631229,94063.0,94062.0,0.053259]
[1735744373309,0.22305951,94068.0,94067.0,0.053257]
[1735744373515,0.22305951,94068.0,94067.0,0.414057]
[1735744373807,0.3293718,94068.0,94067.0,0.414057]
[1735744374211,0.5706002,94068.0,94067.0,0.414057]
[1735744374709,0.5716002,94068.0,94067.0,0.414057]
[1735744375608,0.62340914,94068.0,94067.0,0.414057]
[1735744376015,0.62540914,94068.0,94067.0,0.414057]
[1735744377039,0.62540914,94068.0,94063.0,0.053259]
[1735744377608,0.62540914,94068.0,94064.0,0.053258]
[1735744377816,0.62540914,94068.0,94065.0,0.053258]
[1735744378215,0.44116071,94067.0,94065.0,0.053258]
[1735744378714,0.44116071,94067.0,94058.0,0.38541329]
[1735744378915,0.10630833,94066.0,94059.0,0.053261]
[1735744379338,0.0313,94065.0,94059.0,0.053261]
[1735744379514,0.03124619,94065.0,94059.0,0.053261]
[1735744379717,0.0311,94064.0,94058.0,0.38541329]
[1735744379919,0.0311,94064.0,94060.0,0.053261]
[1735744380117,0.13741285,94064.0,94060.0,0.053261]
[1735744380519,0.13741285,94064.0,94058.0,0.38541329]
[1735744380718,0.053261,94060.0,94058.0,0.38541329]
[1735744381315,0.10631398,94059.0,94058.0,0.38541329]
[1735744382016,0.44116071,94063.0,94058.0,0.38541329]
[1735744382219,0.084359,94064.0,94058.0,0.43867529]
[1735744382220,0.44116071,94059.0,94058.0,0.43867529]
[1735744382419,0.54747752,94059.0,94058.0,0.43867529]
[1735744382621,0.44116071,94059.0,94058.0,0.43867529]
[1735744382920,0.56025883,94059.0,94058.0,0.43867529]
[1735744383523,0.11909812,94059.0,94058.0,0.43867529]
[1735744383824,0.10631681,94059.0,94058.0,0.43867529]
[1735744384221,0.29303734,94062.0,94059.0,0.053261]
[1735744384824,0.10631681,94061.0,94060.0,0.053261]
[1735744386030,0.39935415,94061.0,94060.0,0.053261]
[1735744386332,0.29303734,94061.0,94060.0,0.053261]
[1735744386728,0.39935189,94061.0,94060.0,0.053261]
[1735744387432,0.10631455,94061.0,94060.0,0.053261]
[1735744388831,0.39935189,94061.0,94060.0,0.053261]
[1735744389428,0.45261189,94061.0,94060.0,0.053261]
[1735744389628,0.39935189,94061.0,94058.0,0.02461329]
[1735744389824,0.053261,94059.0,94058.0,0.053262]
[1735744390436,0.15957668,94059.0,94058.0,0.053262]
[1735744391022,0.45261402,94059.0,94058.0,0.053262]
[1735744394830,0.45261402,94059.0,94058.0,0.07492464]
[1735744395231,0.45261402,94059.0,94058.0,0.02166264]
[1735744395433,0.45261402,94059.0,94048.0,0.053267]
[1735744395634,0.45261402,94059.0,94053.0,0.053264]
[1735744396538,0.45361402,94059.0,94053.0,0.053264]
[1735744396942,0.29303734,94058.0,94053.0,0.053264]
[1735744397438,0.0329,94057.0,94053.0,0.053264]
[1735744397633,0.13921963,94057.0,94053.0,0.053264]
[1735744398645,0.50001963,94057.0,94047.0,0.11624863]
[1735744399034,0.50001963,94057.0,94053.0,0.053264]
[1735744399342,0.45506145,94056.0,94053.0,0.053264]
[1735744400031,0.10632416,94055.0,94053.0,0.053264]
[1735744400643,0.39336275,94055.0,94053.0,0.053264]
[1735744401236,0.053264,94054.0,94047.0,0.16951663]
[1735744401744,0.053265,94053.0,94047.0,0.16951663]
[1735744401932,0.1595869,94053.0,94047.0,0.07528108]
[1735744403545,0.44668232,94052.0,94047.0,0.07528108]
[1735744404240,0.10632698,94051.0,94047.0,0.07528108]
[1735744406052,0.44668232,94050.0,94047.0,0.02201308]
[1735744406345,0.44668232,94050.0,94037.0,0.3608]
[1735744406346,0.414068,94049.0,94042.0,0.053271]
[1735744406548,0.444268,94049.0,94042.0,0.053271]
[1735744406856,0.053269,94045.0,94042.0,0.053271]
[1735744407439,0.1063315,94044.0,94042.0,0.053271]
[1735744407641,0.1596015,94044.0,94042.0,0.053271]
[1735744408044,0.05327,94044.0,94042.0,0.053271]
[1735744408258,0.10633433,94043.0,94042.0,0.053271]
[1735744408649,0.44168354,94043.0,94042.0,0.053271]
[1735744408948,0.55315806,94043.0,94042.0,0.053271]
[1735744409447,0.60642806,94043.0,94037.0,0.02187472]
[1735744409642,0.60642806,94043.0,94037.0,0.053273]
[1735744409843,0.414072,94041.0,94037.0,0.053273]
[1735744410445,0.10633772,94040.0,94036.0,0.0015948]
[1735744410651,0.10633772,94040.0,94038.0,0.053273]
[1735744411045,0.053274,94037.0,94036.0,0.02126554]
[1735744411349,0.414074,94037.0,94007.0,0.0634]
[1735744411550,0.10885923,94020.0,94007.0,0.0634]
[1735744411744,0.10885923,94020.0,94016.0,0.053286]
[1735744411947,0.084282,94022.0,94016.0,0.053286]
[1735744412148,0.1063677,94019.0,94018.0,0.053284]
[1735744412654,0.031,94022.0,94020.0,0.053283]
[1735744412874,0.38656038,94019.0,94010.0,0.10885923]
[1735744413050,0.38656038,94019.0,94018.0,0.414085]
[1735744413555,0.49291959,94019.0,94018.0,0.414085]
[1735744414151,0.10635921,94019.0,94018.0,0.414085]
[1735744414555,0.22327692,94025.0,94024.0,0.053281]
[1735744415162,0.32963896,94025.0,94024.0,0.053281]
[1735744415459,0.2696455,94025.0,94024.0,0.053281]
[1735744416457,0.2706455,94025.0,94024.0,0.053281]
[1735744416752,0.10836204,94025.0,94024.0,0.053281]
[1735744417749,0.2716455,94025.0,94024.0,0.053281]
[1735744420061,0.41813925,94025.0,94024.0,0.053281]
[1735744420261,0.47142025,94025.0,94018.0,0.01942372]
[1735744420559,0.47142025,94025.0,94020.0,0.053283]
[1735744421261,0.47142025,94025.0,94010.0,0.01919042]
[1735744421262,0.41713925,94025.0,94010.0,0.01919042]
[1735744421564,0.053288,94013.0,94007.0,0.053291]
[1735744422145,0.10637166,94012.0,94007.0,0.053291]
[1735744422354,0.053289,94011.0,94006.0,0.01957534]
[1735744422557,0.085189,94011.0,94000.0,0.1]
[1735744422758,0.10637166,94010.0,94000.0,0.1]
[1735744423274,0.10637166,94010.0,94000.0,0.11978532]
[1735744423558,0.053291,94006.0,94000.0,0.11978532]
[1735744424154,0.10637958,94005.0,94000.0,0.11978532]
[1735744424961,0.49259631,94005.0,94000.0,0.11978532]
[1735744426161,0.31911636,94004.0,93980.0,0.10885923]
[1735744426347,0.31911636,94004.0,93996.0,0.053297]
[1735744426552,0.31911636,94004.0,93999.0,0.053295]
[1735744426854,0.10638014,94003.0,93999.0,0.053295]
[1735744427557,0.10638014,94003.0,93993.0,0.0664]
[1735744427764,0.10638014,94003.0,94000.0,0.053294]
[1735744428363,0.10638014,94003.0,93992.0,0.49839116]
[1735744428364,0.31911636,94002.0,93992.0,0.32617289]
[1735744428965,0.10638128,94001.0,94000.0,0.053294]
[1735744429155,0.32882541,94001.0,94000.0,0.053294]
[1735744430553,0.49210887,94001.0,94000.0,0.053294]
[1735744431856,0.26966474,94001.0,94000.0,0.053294]
[1735744435051,0.26966474,94001.0,94000.0,0.054294]
[1735744435656,0.26966474,94001.0,94000.0,0.056294]
[1735744436063,0.26966474,94001.0,94000.0,0.054294]
[1735744436263,0.26966474,94001.0,94000.0,0.056294]
[1735744440862,0.63046474,94001.0,94000.0,0.003]
[1735744442271,0.79702643,94001.0,94000.0,0.003]
[1735744442465,0.79702643,94001.0,94000.0,0.002]
[1735744443466,0.79702643,94001.0,93992.0,0.32617289]
[1735744443467,0.79702643,94001.0,93992.0,0.15747252]
[1735744443968,0.79702643,94001.0,93998.0,0.053296]
[1735744444171,0.79702643,94001.0,93998.0,0.05154177]
[1735744444567,0.25517363,93999.0,93998.0,0.05154177]
[1735744445564,0.3615583,93999.0,93998.0,0.05254177]
[1735744445762,0.69140345,93999.0,93998.0,0.05254177]
[1735744447167,0.88680873,93999.0,93992.0,0.01801285]
[1735744447363,0.88680873,93999.0,93982.0,0.053305]
[1735744447564,0.88680873,93999.0,93998.0,0.001]
[1735744447965,0.47303282,93999.0,93998.0,0.001]
[1735744448164,0.30171416,93999.0,93998.0,0.001]
[1735744448372,0.30171416,93999.0,93981.0,0.00159586]
[1735744448666,0.053304,93985.0,93968.0,0.01944502]
[1735744448867,0.3608,93988.0,93948.0,0.3929]
[1735744448868,0.053314,93966.0,93959.0,0.053318]
[1735744449068,0.0654,93965.0,93948.0,0.3929]
[1735744449269,0.17082543,93965.0,93952.0,0.21037747]
[1735744449471,0.17082543,93965.0,93952.0,0.26369947]
[1735744449771,0.053318,93959.0,93953.0,0.053321]
[1735744450164,0.3608,93961.0,93952.0,0.0193439]
[1735744450364,0.10643279,93958.0,93955.0,0.05332]
[1735744450766,0.0307,93960.0,93955.0,0.05332]
[1735744450963,0.10643279,93957.0,93955.0,0.05332]
[1735744451377,0.19398346,93960.0,93955.0,0.05332]
[1735744451671,0.10643223,93959.0,93946.0,0.3608]
[1735744451870,0.10643223,93959.0,93958.0,0.053319]
[1735744452075,0.16328346,93960.0,93959.0,0.053318]
[1735744452574,0.44313074,93960.0,93959.0,0.053318]
[1735744453874,0.27071342,93960.0,93959.0,0.053318]
[1735744455076,0.10742996,93960.0,93959.0,0.053318]
[1735744456673,0.2021449,93960.0,93959.0,0.07762723]
[1735744456867,0.13240506,93960.0,93959.0,0.07762723]
[1735744458177,0.22327454,93967.0,93966.0,0.053314]
[1735744459267,0.32970337,93967.0,93966.0,0.053314]
[1735744459464,0.57476213,93967.0,93966.0,0.001]
[1735744459874,0.57476213,93967.0,93966.0,0.054314]
[1735744460081,0.32970337,93967.0,93966.0,0.054314]
[1735744460270,0.32970337,93967.0,93950.0,0.10885923]
[1735744460475,0.3608,93959.0,93950.0,0.10885923]
[1735744460788,0.3598,93959.0,93958.0,0.053319]
[1735744461377,0.46622996,93959.0,93958.0,0.053319]
[1735744461573,0.46622996,93959.0,93949.0,0.10885923]
[1735744461975,0.46622996,93959.0,93958.0,0.053319]
[1735744461976,0.5180389,93959.0,93958.0,0.053319]
[1735744462682,0.5190389,93959.0,93958.0,0.053319]
[1735744466492,0.5190389,93959.0,93958.0,0.07768378]
[1735744466680,0.47224613,93959.0,93958.0,0.07768378]
[1735744466880,0.41260894,93959.0,93958.0,0.07768378]
[1735744467884,0.56792299,93959.0,93951.0,0.053323]
[1735744468292,0.56792299,93959.0,93958.0,0.053319]
[1735744468787,0.67435692,93959.0,93958.0,0.053319]
[1735744469177,0.67535692,93959.0,93958.0,0.053319]
[1735744469779,0.67435692,93959.0,93958.0,0.053319]
[1735744470785,0.67535692,93959.0,93958.0,0.053319]
[1735744471375,0.67435692,93959.0,93958.0,0.053319]
[1735744471775,0.65100693,93959.0,93958.0,0.053319]
[1735744472088,0.544573,93959.0,93958.0,0.053319]
[1735744473091,0.545573,93959.0,93958.0,0.053319]
[1735744473789,0.544573,93959.0,93958.0,0.053319]
[1735744473981,0.545573,93959.0,93958.0,0.053319]
[1735744474182,0.48323624,93959.0,93958.0,0.053319]
[1735744475182,0.48323624,93959.0,93949.0,0.06914488]
[1735744475183,0.67890043,93959.0,93949.0,0.06914488]
[1735744475797,0.67890043,93959.0,93958.0,0.053319]
[1735744475983,0.67890043,93959.0,93951.0,0.053323]
[1735744476187,0.67890043,93959.0,93958.0,0.053319]
[1735744476383,0.67790043,93959.0,93958.0,0.053319]
[1735744476691,0.67890043,93959.0,93958.0,0.053319]
[1735744477180,0.67790043,93959.0,93958.0,0.053319]
[1735744479284,0.58209692,93959.0,93958.0,0.053319]
[1735744479485,0.28703859,93966.0,93959.0,0.053318]
[1735744479687,0.347806,93970.0,93969.0,0.053312]
[1735744479887,0.71018439,93990.0,93969.0,0.414112]
[1735744480092,0.71018439,93990.0,93982.0,0.053305]
[1735744480788,0.27002218,93985.0,93984.0,0.053304]
[1735744481005,0.18813481,93985.0,93984.0,0.053304]
[1735744481182,0.17313481,93985.0,93984.0,0.053304]
[1735744482192,0.2096057,93989.0,93988.0,0.053302]
[1735744482391,0.1116467,93989.0,93988.0,0.053302]
[1735744482594,0.12065577,93992.0,93991.0,0.0533]
[1735744482792,0.0319,94003.0,94002.0,0.053294]
[1735744482983,0.311854,94012.0,94011.0,0.053289]
[1735744483695,0.41822396,94012.0,94011.0,0.053289]
[1735744484189,0.42722396,94012.0,94011.0,0.053289]
[1735744484883,0.42722396,94012.0,94011.0,0.08403153]
[1735744485485,0.43622396,94012.0,94011.0,0.08403153]
[1735744485690,0.42722396,94012.0,94011.0,0.08403153]
[1735744485892,0.43522396,94012.0,94011.0,0.08403153]
[1735744490496,0.48705882,94012.0,94011.0,0.08403153]
[1735744493400,0.38068886,94012.0,94011.0,0.08403153]
[1735744494293,0.3608,94027.0,94019.0,0.053284]
[1735744494492,0.0338,94035.0,94026.0,0.05328]
[1735744494700,0.0338,94035.0,94034.0,0.053275]
[1735744495402,0.14016996,94035.0,94034.0,0.053275]
[1735744495604,0.14916996,94035.0,94034.0,0.053275]
[1735744495805,0.15816996,94035.0,94034.0,0.053275]
[1735744496401,0.14916996,94035.0,94034.0,0.054275]
[1735744496610,0.15616996,94035.0,94034.0,0.054275]
[1735744496901,0.14716996,94035.0,94034.0,0.053275]
[1735744497104,0.15616996,94035.0,94034.0,0.054275]
[1735744499110,0.16909433,94035.0,94034.0,0.054275]
[1735744499301,0.16909433,94035.0,94034.0,0.08404987]
[1735744500110,0.15616996,94035.0,94034.0,0.08404987]
[1735744501307,0.15616996,94035.0,94034.0,0.02091026]
[1735744501613,0.35297695,94036.0,94035.0,0.053275]
[1735744502203,0.45932089,94036.0,94035.0,0.053275]
[1735744503016,0.46532089,94036.0,94035.0,0.054275]
[1735744503309,0.47432089,94036.0,94035.0,0.055275]
[1735744503509,0.47432089,94036.0,94012.0,0.00152]
[1735744503708,0.3608,94027.0,94010.0,0.46965923]
[1735744503914,0.3608,94027.0,94021.0,0.053282]
[1735744504411,0.3608,94027.0,94010.0,0.46965923]
[1735744504609,0.3608,94018.0,94017.0,0.053285]
[1735744505312,0.46715582,94018.0,94017.0,0.053285]
[1735744505707,0.10635582,94018.0,94017.0,0.053285]
[1735744505908,0.11035582,94018.0,94017.0,0.053285]
[1735744506112,0.004,94018.0,94017.0,0.053285]
[1735744507719,0.005,94018.0,94017.0,0.053285]
[1735744508420,0.16391975,94018.0,94017.0,0.053285]
[1735744508919,0.06824086,94018.0,94017.0,0.053285]
[1735744509111,0.05213101,94018.0,94017.0,0.053285]
[1735744509419,0.3608,94029.0,94028.0,0.053279]
[1735744510122,0.46716317,94029.0,94028.0,0.053279]
[1735744510518,0.3648,94029.0,94028.0,0.053279]
[1735744510823,0.41662619,94029.0,94028.0,0.053279]
[1735744511616,0.42162619,94029.0,94028.0,0.054279]
[1735744511928,0.22209804,94041.0,94040.0,0.053272]
[1735744513517,0.117422,94045.0,94044.0,0.05327]
[1735744515133,0.3608,94046.0,94045.0,0.053269]
[1735744516524,0.3608,94046.0,94045.0,0.055269]
[1735744517124,0.4671315,94046.0,94045.0,0.055269]
[1735744517426,0.4671315,94046.0,94036.0,0.3608]
[1735744517627,0.4671315,94046.0,94030.0,0.053278]
[1735744517628,0.3608,94037.0,94030.0,0.053278]
[1735744517826,0.0653,94036.0,94030.0,0.053278]
[1735744518126,0.0603,94036.0,94020.0,0.1458761]
[1735744518518,0.0603,94036.0,94031.0,0.053277]
[1735744518716,0.0603,94036.0,94020.0,0.03701687]
[1735744518926,0.0603,94036.0,94012.0,0.3608]
[1735744518927,0.3608,94027.0,94026.0,0.05328]
[1735744519328,0.3548,94027.0,94026.0,0.05328]
[1735744519634,0.46115299,94027.0,94026.0,0.05328]
[1735744519929,0.46015299,94027.0,94026.0,0.05328]
[1735744520129,0.57634495,94027.0,94026.0,0.05328]
[1735744520429,0.22254495,94027.0,94026.0,0.05328]
[1735744521121,0.22254495,94027.0,94026.0,0.09088155]
[1735744522338,0.22354495,94027.0,94026.0,0.09088155]
[1735744527029,0.03777323,94027.0,94026.0,0.09088155]
[1735744527732,0.03777323,94027.0,94026.0,0.09288155]
[1735744527929,0.20364236,94032.0,94031.0,0.053277]
[1735744528239,0.0653,94049.0,94045.0,0.053269]
[1735744528431,0.02049063,94048.0,94045.0,0.053269]
[1735744528625,0.02049063,94047.0,94045.0,0.053269]
[1735744528835,0.12843327,94046.0,94045.0,0.053269]
[1735744529833,0.31136979,94046.0,94045.0,0.053269]
[1735744530839,0.31236979,94046.0,94045.0,0.053269]
[1735744531039,0.32036979,94046.0,94045.0,0.09279339]
[1735744531626,0.29987916,94046.0,94045.0,0.09279339]
[1735744532029,0.29187916,94046.0,94045.0,0.09179339]
[1735744532225,0.29587916,94046.0,94045.0,0.09179339]
[1735744532734,0.29987916,94046.0,94045.0,0.09279339]
[1735744533037,0.29887916,94046.0,94045.0,0.09279339]
[1735744533238,0.30187916,94046.0,94045.0,0.09279339]
[1735744533824,0.29887916,94046.0,94045.0,0.09279339]
[1735744534031,0.30087916,94046.0,94045.0,0.09279339]
[1735744534236,0.30087916,94046.0,94045.0,0.09179339]
[1735744534433,0.29687916,94046.0,94045.0,0.09179339]
[1735744534633,0.29487916,94046.0,94045.0,0.09179339]
[1735744534834,0.29787916,94046.0,94045.0,0.09179339]
[1735744535042,0.30187916,94046.0,94045.0,0.09279339]
[1735744535646,0.30187916,94046.0,94023.0,1.5]
[1735744535647,0.053277,94032.0,94021.0,0.053283]
[1735744535852,0.3608,94022.0,94021.0,0.04731274]
[1735744536045,0.3608,94022.0,94020.0,0.053283]
[1735744536243,0.4671315,94022.0,94021.0,0.053283]
[1735744537030,0.4671315,94022.0,94021.0,0.054283]
[1735744538252,0.76574316,94022.0,94021.0,0.055283]
[1735744543044,0.63462766,94022.0,94021.0,0.055283]
[1735744544440,0.85781431,94022.0,94021.0,0.055283]
[1735744545446,0.63462766,94022.0,94021.0,0.055283]
[1735744546647,0.76880396,94022.0,94021.0,0.055283]
[1735744550039,0.76880396,94022.0,94004.0,0.053292]
[1735744550244,0.3608,94014.0,94013.0,0.053287]
[1735744550854,0.46716826,94014.0,94013.0,0.053287]
[1735744551449,0.69035491,94014.0,94013.0,0.053287]
[1735744551849,0.69035491,94014.0,94013.0,0.058287]
[1735744553048,0.99202737,94014.0,94013.0,0.058287]
[1735744553253,0.99202737,94014.0,94013.0,0.060287]
[1735744555456,0.85785107,94014.0,94013.0,0.060287]
[1735744555654,0.85785107,94014.0,94013.0,0.007]
[1735744555655,0.91113807,94014.0,94013.0,0.007]
[1735744556756,0.91113807,94014.0,94002.0,0.00159545]
[1735744556757,1.21113807,94014.0,94002.0,0.00159545]
[1735744556948,0.414093,94003.0,94002.0,0.00159545]
[1735744557549,0.5204607,94003.0,94002.0,0.00159545]
[1735744557958,0.5204607,94003.0,94002.0,0.01059545]
[1735744558457,0.82302362,94003.0,94002.0,0.01059545]
[1735744559053,0.82202362,94003.0,94002.0,0.00759545]
[1735744559861,0.82202362,94003.0,94002.0,0.00459545]
[1735744561652,1.12202362,94003.0,94002.0,0.003]
[1735744561854,0.053303,93985.0,93984.0,0.04736889]
[1735744562163,0.053308,93976.0,93953.0,0.0321]
[1735744562358,0.3608,93968.0,93960.0,0.10885923]
[1735744563067,0.10642317,93967.0,93960.0,0.10885923]
[1735744563367,0.10542317,93967.0,93960.0,0.10885923]
[1735744563959,0.10442317,93967.0,93966.0,0.053314]
[1735744565263,0.10442317,93967.0,93966.0,0.055314]
[1735744565477,0.14537652,93967.0,93966.0,0.055314]
[1735744565661,0.22292472,93982.0,93980.0,0.053306]
[1735744566174,0.16852472,93982.0,93981.0,1.5336]
[1735744566369,0.25419711,93991.0,93982.0,0.053305]
[1735744566370,0.17514649,93991.0,93982.0,0.053305]
[1735744566572,0.3608,93995.0,93981.0,2.07447923]
[1735744566775,0.3608,93995.0,93994.0,0.053298]
[1735744567277,0.46720391,93995.0,93994.0,0.053298]
[1735744568281,0.009,93995.0,93994.0,0.415098]
[1735744568579,0.11107299,93999.0,93998.0,0.053296]
[1735744568769,0.00349701,93999.0,93998.0,0.053296]
[1735744568970,0.3608,94027.0,93999.0,0.053295]
[1735744569166,0.00159562,94028.0,94023.0,0.053282]
[1735744569372,0.1063892,94024.0,94023.0,0.053282]
[1735744569778,0.00159562,94028.0,94023.0,0.053282]
[1735744570000,0.10635582,94024.0,94023.0,0.053282]
[1735744570279,0.00159562,94028.0,94023.0,0.053282]
[1735744570476,0.00159562,94028.0,94026.0,0.05328]
[1735744570684,0.10635582,94027.0,94026.0,0.05328]
[1735744570872,0.00159562,94028.0,94026.0,0.05328]
[1735744571179,0.10635638,94027.0,94026.0,0.05328]
[1735744572079,0.3608,94034.0,94033.0,0.053276]
[1735744572978,0.3608,94034.0,94033.0,0.09991477]
[1735744574172,0.3638,94034.0,94033.0,0.09991477]
[1735744574777,0.47014507,94034.0,94033.0,0.04663877]
[1735744574974,0.47014507,94034.0,94027.0,0.053279]
[1735744575182,0.47014507,94034.0,94024.0,0.15605334]
[1735744575384,0.47014507,94034.0,94031.0,0.053277]
[1735744575586,0.63103694,94034.0,94031.0,0.053277]
[1735744576284,0.62903694,94034.0,94032.0,0.053276]
[1735744576482,0.52269187,94034.0,94032.0,0.053276]
[1735744576783,0.51969187,94034.0,94032.0,0.053276]
[1735744577172,0.52069187,94034.0,94032.0,0.053276]
[1735744577373,0.3618,94034.0,94032.0,0.053276]
[1735744577778,0.10634564,94033.0,94032.0,0.053276]
[1735744579189,0.10634564,94033.0,94032.0,0.0997344]
[1735744580077,0.10934564,94033.0,94032.0,0.0997344]
[1735744580279,0.11134564,94033.0,94032.0,0.0997344]
[1735744580879,0.23831558,94033.0,94032.0,0.0997344]
[1735744582085,0.11134564,94033.0,94032.0,0.0464584]
[1735744582274,0.11134564,94033.0,94026.0,0.05328]
[1735744583471,0.10734564,94033.0,94026.0,0.05328]
[1735744583677,0.12696994,94030.0,94026.0,0.05328]
[1735744584284,0.1063496,94029.0,94026.0,0.05328]
[1735744584479,0.1063496,94029.0,94023.0,0.10885923]
[1735744584686,0.05328,94026.0,94023.0,0.10885923]
[1735744584882,0.0333,94025.0,94016.0,0.52294423]
[1735744585281,0.10635186,94024.0,94016.0,0.52294423]
[1735744585585,0.10635186,94024.0,94017.0,0.053285]
[1735744586082,0.10635186,94024.0,94018.0,0.053285]
[1735744587683,0.12696994,94023.0,94017.0,0.005]
[1735744587881,0.12696994,94023.0,94020.0,0.053283]
[1735744588384,0.10635921,94022.0,94020.0,0.053283]
[1735744589381,0.10635921,94022.0,94021.0,0.053283]
[1735744590591,0.10635921,94022.0,94021.0,0.055283]
[1735744590983,0.0333,94025.0,94021.0,0.055283]
[1735744591193,0.10635865,94024.0,94021.0,0.055283]
[1735744591586,0.0333,94025.0,94021.0,0.055283]
[1735744591780,0.10635752,94023.0,94021.0,0.056283]
[1735744592189,0.0333,94025.0,94021.0,0.056283]
[1735744592390,0.10635752,94022.0,94021.0,0.056283]
[1735744592784,0.0333,94025.0,94016.0,0.41518218]
[1735744592985,0.10635695,94022.0,94021.0,0.002]
[1735744593280,0.19219187,94025.0,94021.0,1.502]
[1735744593489,0.15889187,94025.0,94024.0,0.053281]
[1735744594293,0.26524882,94025.0,94024.0,0.053281]
[1735744594493,0.10635695,94025.0,94024.0,0.053281]
[1735744594883,0.15889187,94026.0,94024.0,0.053281]
[1735744595079,0.10635525,94025.0,94024.0,0.053281]
[1735744596093,0.58291741,94034.0,94027.0,0.053279]
[1735744596280,0.58291741,94034.0,94024.0,0.11085923]
[1735744596486,0.10635525,94025.0,94024.0,0.16414023]
[1735744596688,0.58291741,94034.0,94027.0,0.053279]
[1735744597196,0.10635016,94033.0,94028.0,0.053279]
[1735744597788,0.20740781,94033.0,94028.0,0.053279]
[1735744598395,0.20740781,94033.0,94024.0,0.11085923]
[1735744598786,0.20840781,94033.0,94024.0,0.11085923]
[1735744598986,0.20840781,94033.0,94027.0,0.004]
[1735744599186,0.23710239,94032.0,94027.0,0.004]
[1735744599388,0.21857922,94032.0,94027.0,0.004]
[1735744599696,0.21857922,94032.0,94025.0,0.05328]
[1735744599892,0.1063496,94031.0,94025.0,0.05328]
[1735744600286,0.1063496,94031.0,94027.0,0.002]
[1735744600491,0.22353937,94029.0,94027.0,0.002]
[1735744601190,0.10635016,94028.0,94027.0,0.003]
[1735744601590,0.43094718,94028.0,94027.0,0.003]
[1735744601899,0.32459702,94028.0,94027.0,0.001]
[1735744602288,0.43094888,94028.0,94027.0,0.001]
[1735744602490,0.43094888,94028.0,94027.0,0.003]
[1735744602995,0.27712122,94028.0,94027.0,0.001]
[1735744603702,0.27712122,94028.0,94027.0,0.003]
[1735744604990,0.29550332,94028.0,94027.0,0.05542503]
[1735744606603,0.27712122,94028.0,94027.0,0.05542503]
[1735744607000,0.29373796,94028.0,94027.0,0.05542503]
[1735744607302,0.27712122,94028.0,94027.0,0.10870403]
[1735744607598,0.10635186,94028.0,94027.0,0.10870403]